bitfinex/quotes_ETHUSD_20241001
["timestamp","ask_amount","ask_price","bid_price","bid_amount"]
[1727803405731,4.05642,2465.3,2464.2,4.05809]
[1727803406251,0.1474029,2465.6,2464.1,3.0]
[1727803406402,0.1474029,2465.6,2464.2,4.05799]
[1727803406755,0.1474029,2465.6,2464.0,0.6953]
[1727803406756,4.05624,2465.4,2464.3,4.0579]
[1727803406971,0.1474029,2465.6,2464.5,4.0575]
[1727803407239,0.1474029,2465.6,2464.9,4.05695]
[1727803407439,0.1474029,2465.6,2464.6,0.40575]
[1727803407648,0.1474029,2465.6,2464.6,4.05744]
[1727803407649,4.2033329,2465.6,2464.6,4.05744]
[1727803407848,0.1474029,2465.6,2464.6,4.05744]
[1727803408014,0.1474029,2465.6,2463.3,1.26135711]
[1727803408216,0.1474029,2465.6,2462.9,5.09407638]
[1727803408217,4.05877,2463.8,2462.9,5.09407638]
[1727803408460,1.623,2464.2,2463.1,4.05991]
[1727803408461,5.68118,2464.2,2463.1,4.05991]
[1727803408740,5.68118,2464.2,2462.9,5.09402638]
[1727803408741,4.05692,2465.0,2464.0,4.05837]
[1727803408946,4.05676,2465.1,2464.2,4.05805]
[1727803409098,4.05676,2465.1,2463.4,4.05935]
[1727803409099,4.05699,2464.9,2463.8,4.0587]
[1727803409303,4.05692,2465.0,2464.0,4.05833]
[1727803409532,4.2033129,2465.6,2463.9,0.40587]
[1727803409533,4.05668,2465.1,2464.1,4.05818]
[1727803410067,4.05643,2465.3,2464.3,4.05782]
[1727803410365,1.5016,2465.5,2463.9,4.4644]
[1727803410366,4.05725,2464.8,2463.9,4.4644]
[1727803410675,1.5016,2465.5,2463.9,4.0585]
[1727803410842,4.05696,2464.9,2463.9,4.0585]
[1727803411170,4.05642,2465.3,2464.3,4.05782]
[1727803411376,0.1474029,2465.6,2464.9,4.05683]
[1727803411732,0.1474029,2465.6,2464.2,6.67123983]
[1727803411948,0.1474029,2465.6,2464.8,4.057]
[1727803412145,0.1474029,2465.6,2464.3,3.66712398]
[1727803412146,0.1474029,2465.6,2464.5,4.05754]
[1727803412331,4.2032129,2465.6,2464.8,4.05707]
[1727803412534,4.05623,2465.4,2464.5,4.0576]
[1727803412774,4.05623,2465.4,2464.3,4.05779]
[1727803412943,4.0561,2465.5,2464.7,4.05718]
[1727803413154,4.2033229,2465.6,2464.5,4.05753]
[1727803413155,4.05633,2465.3,2464.5,4.05753]
[1727803413371,0.1474029,2465.6,2464.0,4.05839]
[1727803413372,4.05714,2464.8,2464.0,4.05843]
[1727803413536,0.1474029,2465.6,2463.5,3.68507387]
[1727803413537,0.55,2464.9,2463.5,4.05915]
[1727803413883,0.55,2464.9,2463.4,4.05929]
[1727803413884,4.05821,2464.2,2463.4,4.05941]
[1727803414044,4.05781,2464.4,2463.4,4.871318]
[1727803414247,4.05746,2464.6,2462.7,10.73175983]
[1727803414445,4.05815,2464.2,2463.4,4.05927]
[1727803414658,4.05754,2464.6,2462.9,1.52134725]
[1727803414869,5.70559,2464.8,2463.9,4.05848]
[1727803415173,4.05675,2465.1,2464.2,4.058]
[1727803415344,4.05614,2465.4,2464.3,4.05794]
[1727803415675,4.05661,2465.2,2464.3,4.05784]
[1727803415876,4.05619,2465.4,2464.3,4.05783]
[1727803416081,0.1474029,2465.6,2463.6,3.6953]
[1727803416235,0.1474029,2465.6,2464.1,4.05821]
[1727803416436,0.1474029,2465.6,2464.7,4.05716]
[1727803416437,4.2033429,2465.6,2464.7,4.05716]
[1727803416858,0.1474029,2465.6,2464.3,3.0]
[1727803417044,0.1474029,2465.6,2464.8,4.05696]
[1727803417393,0.1474029,2465.6,2464.9,0.405696]
[1727803417682,0.1474029,2465.6,2464.2,4.05802]
[1727803417865,4.05716,2464.8,2464.0,4.05831]
[1727803418034,4.05696,2464.9,2463.9,4.05859]
[1727803418232,4.0567,2465.1,2463.7,0.775444]
[1727803418474,4.05666,2465.1,2464.3,4.0578]
[1727803418686,1.5157,2465.2,2464.6,4.05743]
[1727803418887,0.1474029,2465.6,2463.8,4.05873]
[1727803419065,0.1474029,2465.6,2464.5,4.05751]
[1727803419066,4.05632,2465.3,2464.5,4.05751]
[1727803419247,4.05632,2465.3,2464.4,4.05768]
[1727803419597,0.1474029,2465.6,2464.9,4.05685]
[1727803419747,0.1474029,2465.6,2464.4,0.405768]
[1727803419950,4.0563,2465.3,2464.4,4.05767]
[1727803420271,0.1474029,2465.6,2464.8,4.05699]
[1727803420435,0.1474029,2465.6,2464.7,4.05715]
[1727803420784,4.05607,2465.5,2464.7,4.05715]
[1727803420982,0.1474029,2465.6,2464.5,3.0]
[1727803421152,0.1474029,2465.6,2465.5,4.05597]
[1727803421352,0.1474029,2465.6,2464.6,0.3]
[1727803421353,0.1474029,2465.6,2465.0,4.0567]
[1727803421554,4.2032929,2465.6,2464.7,4.05719]
[1727803421875,4.2032929,2465.6,2464.7,4.05712]
[1727803421876,0.1474029,2465.6,2464.7,4.05712]
[1727803422180,0.1474029,2465.6,2464.9,4.05693]
[1727803422377,0.1474029,2465.6,2464.5,4.05753]
[1727803422586,0.1474029,2465.6,2464.8,4.057]
[1727803422739,0.1474029,2465.6,2464.9,4.05693]
[1727803422948,4.056,2465.5,2464.6,4.05734]
[1727803423143,4.05633,2465.3,2464.5,4.05751]
[1727803423367,4.05603,2465.5,2463.9,4.65406087]
[1727803423574,4.2032129,2465.6,2464.8,4.05705]
[1727803423744,0.1474029,2465.6,2464.8,4.05701]
[1727803423944,0.1474029,2465.6,2464.5,4.05752]
[1727803423945,4.05639,2465.3,2464.5,4.05752]
[1727803424294,0.1474029,2465.6,2464.3,4.05783]
[1727803424441,4.05621,2465.4,2464.5,4.05752]
[1727803424642,4.05621,2465.4,2463.7,6.67123983]
[1727803424643,4.05701,2464.9,2463.3,4.05957]
[1727803424893,8.11409,2464.9,2464.1,4.05814]
[1727803425099,8.11409,2464.9,2463.4,1.07308098]
[1727803425100,1.5231,2464.7,2462.9,4.06012]
[1727803425245,1.5231,2464.7,2463.7,0.50606177]
[1727803425581,1.5231,2464.7,2463.2,9.81192878]
[1727803425749,1.5231,2464.7,2463.9,4.05848]
[1727803425750,5.58042,2464.7,2463.9,4.05848]
[1727803425945,1.5231,2464.7,2464.1,4.05818]
[1727803426150,1.5231,2464.7,2463.6,4.059]
[1727803426151,1.5231,2464.7,2464.3,4.0579]
[1727803426369,4.05566,2465.7,2463.5,0.6953]
[1727803426370,1.563,2466.0,2465.0,4.0567]
[1727803426581,4.05573,2465.7,2464.9,4.05694]
[1727803426754,1.563,2466.0,2464.6,4.05739]
[1727803426968,1.563,2466.0,2464.7,0.93343403]
[1727803427154,1.563,2466.0,2464.8,4.057]
[1727803427155,4.05578,2465.7,2464.8,4.057]
[1727803427381,1.563,2466.0,2464.5,4.05749]
[1727803427382,5.61817,2466.0,2464.5,4.05749]
[1727803427588,4.05549,2465.8,2464.1,9.33520034]
[1727803427754,1.563,2466.0,2465.4,4.05612]
[1727803428095,4.05543,2465.9,2465.0,4.05677]
[1727803428242,1.563,2466.0,2464.3,4.0578]
[1727803428243,4.05556,2465.8,2465.1,4.05661]
[1727803428445,4.2032129,2465.6,2464.7,4.05717]
[1727803428688,4.2032329,2465.6,2464.8,4.05702]
[1727803428902,0.1474029,2465.6,2465.1,4.0565]
[1727803429183,0.1474029,2465.6,2464.6,4.05741]
[1727803429184,0.1474029,2465.6,2463.9,0.6953]
[1727803429344,0.1474029,2465.6,2464.8,4.05707]
[1727803429345,0.55,2465.5,2464.8,4.05707]
[1727803429548,0.55,2465.5,2464.9,4.05692]
[1727803429894,0.1474029,2465.6,2465.0,4.05673]
[1727803430183,0.1474029,2465.6,2464.7,4.05726]
[1727803430387,0.1474029,2465.6,2464.8,0.405726]
[1727803430556,0.1474029,2465.6,2464.6,4.05733]
[1727803430557,4.05597,2465.5,2464.6,4.05733]
[1727803430757,0.1474029,2465.6,2463.9,4.75382]
[1727803430758,0.1474029,2465.6,2464.4,4.05766]
[1727803430960,0.1474029,2465.6,2463.8,5.27695034]
[1727803431192,4.05598,2465.5,2464.8,4.05701]
[1727803431349,4.05607,2465.5,2464.2,5.27695034]
[1727803431547,0.1474029,2465.6,2464.4,4.05769]
[1727803431548,0.55,2465.2,2464.4,4.05769]
[1727803431760,0.1474029,2465.6,2465.1,4.05649]
[1727803432064,0.1474029,2465.6,2464.2,9.33498034]
[1727803432227,0.1474029,2465.6,2465.0,4.05678]
[1727803432402,0.1474029,2465.6,2464.6,4.05734]
[1727803432573,0.1474029,2465.6,2465.2,4.05638]
[1727803432767,0.1474029,2465.6,2465.4,4.05611]
[1727803432970,0.1474029,2465.6,2465.5,4.05597]
[1727803433170,0.1474029,2465.6,2465.4,4.05611]
[1727803433490,0.1474029,2465.6,2465.5,4.05588]
[1727803433491,0.1710697,2465.6,2465.5,4.05588]
[1727803433821,0.1710697,2465.6,2465.5,4.867079]
[1727803434170,0.1710697,2465.6,2465.5,4.05597]
[1727803434821,4.05452,2466.4,2465.5,4.05597]
[1727803434822,1.5632,2467.4,2465.5,9.33292034]
[1727803435011,1.5632,2467.4,2465.8,4.05535]
[1727803435012,4.05353,2467.0,2465.8,4.05535]
[1727803435215,4.05448,2466.5,2465.6,4.05565]
[1727803435370,4.05448,2466.5,2464.8,4.05697]
[1727803435371,1.54,2466.3,2465.0,4.05671]
[1727803435573,4.05493,2466.2,2465.3,4.0562]
[1727803435789,1.54,2466.3,2465.0,0.405671]
[1727803435994,4.05567,2465.7,2464.6,4.463154]
[1727803436194,0.55,2465.4,2464.7,4.05727]
[1727803436377,1.54,2466.3,2464.7,4.05727]
[1727803436378,0.55,2465.8,2465.1,4.05653]
[1727803437034,0.55,2465.6,2464.9,4.05684]
[1727803437234,0.55,2465.8,2465.0,4.05674]
[1727803437410,1.54,2466.3,2465.3,4.0562]
[1727803437411,0.55,2466.1,2465.3,4.0562]
[1727803437594,1.54,2466.3,2465.7,4.05562]
[1727803437779,1.54,2466.3,2465.7,4.05554]
[1727803437980,1.54,2466.3,2465.7,4.05563]
[1727803438226,1.54,2466.3,2465.6,4.05579]
[1727803438476,5.59475,2466.3,2465.5,4.05593]
[1727803438728,5.59475,2466.3,2465.0,4.462364]
[1727803438913,5.59475,2466.3,2465.6,4.05567]
[1727803438914,1.54,2466.3,2465.6,4.05567]
[1727803439826,5.59467,2466.3,2465.6,8.11138]
[1727803440033,1.54,2466.3,2465.6,4.05567]
[1727803440339,1.54,2466.3,2466.2,4.05482]
[1727803440544,1.54,2466.3,2466.0,4.05512]
[1727803440825,1.54,2466.3,2465.7,4.05558]
[1727803441231,0.57558774,2466.2,2465.2,4.0564]
[1727803441411,0.57558774,2466.2,2464.8,5.27695034]
[1727803441412,4.05567,2465.7,2464.8,8.1141]
[1727803441613,0.57558774,2465.6,2465.0,4.05668]
[1727803441814,4.60537,2465.9,2464.8,4.99379192]
[1727803441985,0.55,2465.7,2465.0,4.05672]
[1727803442186,1.54,2466.3,2465.3,4.0562]
[1727803442389,4.05533,2465.9,2465.1,4.05658]
[1727803442588,1.54,2466.3,2464.7,4.05726]
[1727803442589,4.63145034,2465.8,2464.7,4.05726]
[1727803442788,4.05582,2465.6,2464.5,0.84728515]
[1727803443003,4.05696,2464.9,2464.1,4.05815]
[1727803443312,0.60807955,2465.3,2463.7,4.05886]
[1727803443313,4.05763,2464.5,2463.7,4.05886]
[1727803443514,4.05763,2464.5,2463.2,6.97061576]
[1727803443515,0.80421312,2464.4,2463.6,4.05908]
[1727803443758,0.55,2464.2,2463.5,4.0592]
[1727803443924,1.6184,2464.0,2463.5,4.0592]
[1727803444122,1.6184,2464.0,2463.7,4.05888]
[1727803444123,0.55,2463.9,2463.7,4.05888]
[1727803444411,0.55,2463.9,2463.8,4.05877]
[1727803444626,4.85734934,2464.9,2464.0,4.05832]
[1727803444627,0.55,2464.6,2464.0,4.05832]
[1727803444947,0.80030934,2465.4,2463.7,0.6953]
[1727803445154,2.75426469,2465.5,2464.8,4.05711]
[1727803445315,1.5538,2465.5,2465.1,4.05656]
[1727803445520,1.5538,2465.5,2465.4,4.05613]
[1727803445734,4.0546,2466.4,2465.4,4.05613]
[1727803445735,1.62,2466.3,2465.4,4.05613]
[1727803445939,1.62,2466.3,2465.5,4.05592]
[1727803446136,1.62,2466.3,2465.3,4.05624]
[1727803446447,4.05482,2466.2,2465.3,4.05624]
[1727803446658,1.62,2466.3,2465.3,0.811282]
[1727803446965,1.62,2466.3,2465.5,4.05581]
[1727803447105,1.62,2466.3,2465.9,4.0553]
[1727803447307,1.62,2466.3,2465.3,0.811282]
[1727803447308,1.62,2466.3,2465.7,4.05557]
[1727803447517,1.62,2466.3,2465.5,9.33288034]
[1727803447518,1.62,2466.3,2465.8,4.05544]
[1727803447735,1.62,2466.3,2465.6,4.05567]
[1727803447924,1.62,2466.3,2465.5,5.27695034]
[1727803448143,1.62,2466.3,2465.7,4.05563]
[1727803448449,1.62,2466.3,2465.9,4.05526]
[1727803448747,1.62,2466.3,2465.5,5.27695034]
[1727803448748,1.62,2466.3,2465.6,4.05577]
[1727803449561,1.62,2466.3,2465.7,4.05551]
[1727803449717,1.62,2466.3,2465.7,4.05564]
[1727803449924,0.55,2466.2,2465.7,4.05564]
[1727803450472,0.55,2466.2,2465.3,0.811282]
[1727803450761,0.55,2466.2,2465.4,4.05606]
[1727803451052,4.05525,2466.0,2465.2,4.05642]
[1727803451261,0.55,2465.9,2465.4,4.0561]
[1727803451557,4.60537,2465.9,2465.0,4.05671]
[1727803451755,0.55,2465.9,2465.5,4.0559]
[1727803452048,0.55,2465.9,2465.7,4.05552]
[1727803452544,0.55,2466.0,2465.1,4.05655]
[1727803452753,0.55,2466.0,2464.6,5.78774392]
[1727803452754,0.55,2465.8,2465.4,4.05613]
[1727803452941,0.55,2465.8,2464.6,5.78774392]
[1727803452942,0.55,2465.8,2464.7,4.05726]
[1727803453269,0.55,2466.2,2465.4,4.056]
[1727803453448,1.62,2466.3,2465.8,4.05544]
[1727803453614,1.62,2466.3,2465.6,4.05567]
[1727803453816,1.62,2466.3,2465.4,5.27695034]
[1727803454013,1.62,2466.3,2465.7,4.05563]
[1727803454327,1.60064255,2467.1,2467.0,4.0535]
[1727803454542,0.80030934,2467.8,2467.5,4.05252]
[1727803454962,2.95098689,2467.9,2467.3,4.05294]
[1727803454963,1.7505222,2467.9,2467.3,4.05294]
[1727803455112,1.7505222,2467.9,2467.1,4.05328]
[1727803455113,1.7505222,2467.9,2467.1,4.05325]
[1727803455308,1.7505222,2467.9,2467.3,4.0529]
[1727803455515,1.7505222,2467.9,2467.6,4.05238]
[1727803455751,0.1264222,2467.9,2467.8,4.05219]
[1727803456260,1.5279,2469.7,2468.8,4.05042]
[1727803456411,1.5279,2469.7,2468.6,5.27695034]
[1727803456412,1.5279,2469.7,2469.3,4.04959]
[1727803456757,1.5279,2469.7,2468.6,9.32780034]
[1727803456758,1.5279,2469.7,2469.0,4.05009]
[1727803457052,1.5279,2469.7,2469.4,4.04941]
[1727803457215,1.5279,2469.7,2468.3,0.6953]
[1727803457415,1.5279,2469.7,2469.2,4.04982]
[1727803457611,1.5279,2469.7,2468.6,5.27695034]
[1727803457612,1.5279,2469.7,2469.5,4.04934]
[1727803457846,1.5163,2470.3,2469.1,5.27695034]
[1727803458151,1.5163,2470.3,2469.7,4.04903]
[1727803458382,1.5163,2470.3,2469.3,4.04968]
[1727803458383,4.04835,2470.2,2469.3,4.04968]
[1727803458527,1.5163,2470.3,2469.3,4.04968]
[1727803458856,1.5163,2470.3,2468.3,4.74651]
[1727803458857,4.05019,2469.1,2468.1,4.05165]
[1727803459055,4.05001,2469.2,2468.3,4.05133]
[1727803459266,4.05001,2469.2,2467.6,4.0525]
[1727803459267,1.5759,2469.3,2468.5,4.05103]
[1727803459628,1.5759,2469.3,2468.1,4.05161]
[1727803459629,0.55,2469.2,2468.1,4.05161]
[1727803459953,0.55,2469.2,2468.1,0.405161]
[1727803460132,0.55,2469.2,2468.5,4.05092]
[1727803460462,0.55,2469.2,2468.1,0.405161]
[1727803460646,0.55,2469.2,2468.5,4.05092]
[1727803460820,0.55,2469.2,2468.7,4.05071]
[1727803461021,1.5759,2469.3,2468.9,4.05029]
[1727803461217,5.27695034,2470.6,2468.9,4.05028]
[1727803461218,1.6418,2470.4,2468.9,4.05028]
[1727803461451,1.6418,2470.4,2468.2,7.05151]
[1727803461452,4.04968,2469.4,2468.4,4.0511]
[1727803461632,4.04883,2469.9,2468.5,4.05095]
[1727803461841,4.04971,2469.4,2468.5,4.05095]
[1727803462047,4.04944,2469.5,2468.6,4.05076]
[1727803462216,4.04975,2469.3,2468.3,4.05129]
[1727803462422,4.05032,2469.0,2468.1,4.05169]
[1727803462622,8.10001,2469.2,2468.2,4.05147]
[1727803462814,0.55,2469.2,2468.1,4.05169]
[1727803463018,0.55,2468.9,2468.1,4.05158]
[1727803463261,0.55,2468.9,2468.2,4.05139]
[1727803463475,0.55,2469.2,2468.4,4.05107]
[1727803463620,0.55,2469.2,2468.5,4.05103]
[1727803463819,0.55,2469.2,2468.3,4.05128]
[1727803464132,0.55,2469.2,2468.1,8.10318]
[1727803464133,0.55,2469.0,2468.1,8.10318]
[1727803464461,4.60023,2469.0,2467.7,3.6953]
[1727803464660,4.60023,2469.0,2468.1,4.05158]
[1727803464845,0.55,2468.8,2468.1,4.05158]
[1727803465021,0.55,2469.0,2467.8,0.774779]
[1727803465218,4.60031,2469.0,2468.1,4.05161]
[1727803465444,0.55,2469.1,2468.3,4.05136]
[1727803465670,4.05126,2468.4,2467.8,0.774779]
[1727803465835,1.5014,2469.3,2467.3,4.98591503]
[1727803465836,4.05074,2468.7,2467.3,4.98591503]
[1727803466051,1.5942,2467.5,2465.9,1.41241662]
[1727803466246,4.05165,2468.2,2467.4,5.27695034]
[1727803466470,1.5942,2468.6,2467.5,0.93298203]
[1727803466765,0.55,2468.5,2467.5,0.93298203]
[1727803466964,4.05072,2468.7,2467.5,0.93298203]
[1727803467188,0.55,2468.4,2467.5,4.98559203]
[1727803467495,0.55,2468.4,2467.5,4.98554203]
[1727803467668,4.60131,2468.4,2467.5,8.10512]
[1727803467838,0.55,2468.2,2467.5,4.05256]
[1727803468178,0.55,2468.2,2467.7,4.05235]
[1727803468380,0.55,2468.3,2467.5,4.05264]
[1727803468677,0.55,2468.3,2467.6,3.93295903]
[1727803468883,0.55,2468.3,2467.9,4.05191]
[1727803469034,4.6015,2468.3,2467.6,0.93295903]
[1727803469239,4.6015,2468.3,2467.4,4.05273]
[1727803469490,0.55,2468.0,2467.4,4.05273]
[1727803469775,0.55,2468.0,2467.1,3.0]
[1727803469776,0.55,2467.8,2467.1,4.05333]
[1727803469988,4.05207,2467.9,2467.1,4.05332]
[1727803470151,0.55,2468.0,2467.2,4.863787]
[1727803470354,0.55,2467.8,2467.1,4.05328]
[1727803470677,0.55,2467.8,2467.1,4.05334]
[1727803470886,0.55,2467.8,2467.5,4.05254]
[1727803471238,0.55,2467.8,2467.3,8.10585]
[1727803471446,4.05279,2467.5,2466.7,4.05383]
[1727803471755,0.55,2467.0,2466.3,4.05461]
[1727803471954,0.55,2467.0,2466.5,4.05429]
[1727803472215,0.55,2467.0,2465.8,5.97225034]
[1727803472216,2.0928,2466.7,2465.4,5.27695034]
[1727803472341,2.0928,2466.7,2465.0,4.75197]
[1727803472342,4.60427,2466.6,2465.2,4.55714968]
[1727803472539,4.60427,2466.6,2465.0,5.97225034]
[1727803472540,0.55,2466.3,2465.3,4.05626]
[1727803472740,0.55,2466.3,2465.4,0.405626]
[1727803472981,0.55,2466.3,2465.4,4.05605]
[1727803473505,0.55,2466.3,2465.7,4.05552]
[1727803473686,0.55,2466.3,2465.9,4.05519]
[1727803473839,4.05426,2466.6,2465.9,4.05519]
[1727803473840,0.55,2466.6,2465.9,4.05519]
[1727803474037,4.60426,2466.6,2465.4,5.27695034]
[1727803474353,4.43023436,2468.2,2465.4,5.27695034]
[1727803474354,4.05285,2467.4,2466.4,4.05436]
[1727803474687,8.1059,2467.4,2466.7,4.05389]
[1727803474845,4.05327,2467.2,2466.5,4.05427]
[1727803475041,4.05291,2467.4,2466.4,4.05445]
[1727803475240,5.59055,2467.7,2466.3,4.05458]
[1727803475452,4.05331,2467.2,2466.4,0.405458]
[1727803475651,4.05364,2467.0,2466.3,4.05458]
[1727803475950,4.05286,2467.4,2466.7,4.05391]
[1727803476153,5.59054,2467.7,2466.8,4.05381]
[1727803476341,5.59054,2467.7,2466.9,4.05356]
[1727803476577,5.59054,2467.7,2467.0,4.05338]
[1727803476742,5.59054,2467.7,2467.1,0.02224789]
[1727803476946,4.05279,2467.5,2466.9,0.810737]
[1727803477191,4.05279,2467.5,2466.3,4.05451]
[1727803477192,4.05334,2467.1,2466.2,4.0548]
[1727803477494,1.5381,2467.7,2466.6,4.05403]
[1727803477495,0.55,2467.0,2466.6,4.05403]
[1727803477786,0.55,2466.6,2465.7,4.05558]
[1727803477940,0.55,2466.5,2466.3,4.05454]
[1727803478284,0.55,2466.5,2466.4,4.05449]
[1727803478441,0.55,2466.5,2465.5,1.22299503]
[1727803478644,0.55,2466.5,2466.4,4.05449]
[1727803478892,4.05368,2466.9,2466.3,4.05453]
[1727803479091,1.5348,2467.2,2465.5,5.27881503]
[1727803479092,0.55,2466.8,2466.4,4.05441]
[1727803479390,0.55,2466.8,2466.4,4.05444]
[1727803479588,0.55,2467.1,2466.4,4.05437]
[1727803479792,0.55,2467.1,2466.5,8.513837]
[1727803479947,0.55,2467.1,2466.8,4.05383]
[1727803480147,0.55,2467.1,2466.7,4.0539]
[1727803480382,0.55,2467.1,2466.5,4.459677]
[1727803480566,1.5348,2467.2,2466.5,4.05423]
[1727803480773,1.5348,2467.2,2466.3,4.05463]
[1727803480949,1.5348,2467.2,2465.5,1.22299503]
[1727803481151,4.05395,2466.8,2466.0,4.05505]
[1727803481357,4.05337,2467.1,2465.5,0.6953]
[1727803481556,1.5348,2467.2,2465.5,0.6953]
[1727803481797,1.5348,2467.2,2466.8,4.05379]
[1727803481798,0.55,2467.1,2466.8,4.05379]
[1727803482088,0.55,2467.1,2466.7,4.05388]
[1727803482424,0.55,2466.1,2465.6,4.05572]
[1727803482712,0.55,2466.1,2465.6,4.05576]
[1727803482912,4.05473,2466.3,2465.6,4.05577]
[1727803482913,0.55,2466.2,2465.6,4.05577]
[1727803483222,4.05385,2466.8,2465.1,4.05648]
[1727803483223,0.55,2466.4,2465.9,4.05527]
[1727803483508,4.60487,2466.2,2465.6,4.0557]
[1727803483717,0.55,2466.2,2465.8,4.05545]
[1727803484006,0.55,2466.4,2465.8,4.05537]
[1727803484516,4.05443,2466.5,2465.2,4.05634]
[1727803484517,0.55,2465.7,2465.2,4.05634]
[1727803484806,1.6063,2466.3,2465.2,4.12802966]
[1727803484807,0.55,2465.8,2465.2,4.12802966]
[1727803485027,4.05581,2465.6,2464.3,0.6953]
[1727803485234,0.55,2465.8,2465.1,4.05663]
[1727803485507,4.05616,2465.4,2464.7,4.05714]
[1727803485722,0.55,2465.3,2464.4,4.0577]
[1727803485873,4.05486,2466.2,2465.5,4.05588]
[1727803486208,4.05499,2466.1,2465.5,4.05585]
[1727803486413,4.05486,2466.2,2465.5,4.05585]
[1727803486617,1.6063,2466.3,2465.7,4.05553]
[1727803486779,5.66095,2466.3,2465.7,4.05553]
[1727803486974,4.05496,2466.2,2465.0,3.0]
[1727803487303,1.6063,2466.3,2465.4,4.05603]
[1727803487514,4.05492,2466.2,2465.4,4.05608]
[1727803487679,4.05492,2466.2,2465.5,4.05586]
[1727803488020,4.05492,2466.2,2465.1,0.82769503]
[1727803488021,0.55,2465.7,2465.2,4.05637]
[1727803488176,0.55,2465.7,2465.1,0.82769503]
[1727803488375,0.55,2465.4,2464.9,4.05686]
[1727803488622,0.55,2465.4,2465.2,4.05643]
[1727803488811,0.55,2465.6,2465.1,4.05653]
[1727803489014,4.05542,2465.9,2464.7,7.05726]
[1727803489015,0.55,2465.8,2464.8,4.05704]
[1727803489183,4.05502,2466.1,2465.5,4.05585]
[1727803489396,4.05531,2465.9,2464.9,3.0]
[1727803489710,4.05558,2465.8,2465.2,4.05636]
[1727803490024,4.05515,2466.0,2465.4,4.05609]
[1727803490331,5.66104,2466.3,2465.7,4.05562]
[1727803490476,5.66104,2466.3,2464.9,4.05695]
[1727803490477,1.6063,2466.3,2464.9,3.0]
[1727803490677,4.05492,2466.2,2464.9,3.0]
[1727803490990,1.6063,2466.3,2465.5,4.05584]
[1727803491314,5.66096,2466.3,2465.7,4.05563]
[1727803491475,4.05505,2466.1,2465.5,4.05586]
[1727803491676,4.05489,2466.2,2465.7,4.05562]
[1727803492083,0.55,2466.1,2465.7,4.05562]
[1727803492454,0.55,2466.1,2465.5,4.05586]
[1727803492632,0.55,2466.1,2465.7,4.05554]
[1727803492968,1.6063,2466.3,2465.9,4.0553]
[1727803493107,4.05444,2466.5,2465.9,4.0553]
[1727803493413,1.601,2466.8,2465.9,4.0553]
[1727803493747,4.05458,2466.4,2465.7,4.461134]
[1727803493953,4.05458,2466.4,2465.8,4.05543]
[1727803494245,4.05458,2466.4,2465.3,4.75156]
[1727803494246,4.05449,2466.5,2465.9,4.05528]
[1727803494455,4.05451,2466.4,2465.9,4.05528]
[1727803494606,0.55,2466.4,2465.9,4.866357]
[1727803494950,4.05478,2466.3,2465.7,4.05552]
[1727803495152,0.55,2466.2,2465.7,4.05552]
[1727803495442,0.55,2466.0,2465.5,4.05586]
[1727803495806,4.05507,2466.1,2465.6,4.05579]
[1727803496003,0.55,2466.2,2465.7,4.05555]
[1727803496222,0.55,2465.9,2465.4,4.05599]
[1727803496427,0.55,2465.9,2465.6,4.05567]
[1727803496620,4.05368,2466.9,2465.1,7.0566]
[1727803496621,0.55,2466.0,2465.1,3.0]
[1727803496864,0.55,2466.1,2465.7,4.05552]
[1727803497165,0.55,2466.3,2465.8,4.05543]
[1727803497381,4.05425,2466.6,2466.0,4.05512]
[1727803497382,0.55,2466.4,2466.0,4.05512]
[1727803497522,0.55,2466.4,2465.8,4.05538]
[1727803497523,0.55,2466.2,2465.8,4.05538]
[1727803497726,4.60461,2466.4,2465.9,4.05521]
[1727803497959,0.55,2466.4,2466.0,4.05514]
[1727803498265,4.05359,2467.0,2465.8,4.05545]
[1727803498266,0.188941,2465.9,2465.8,3.0]
[1727803498466,0.188941,2465.9,2465.8,7.05547]
[1727803498625,0.188941,2465.9,2465.8,13.83768203]
[1727803499026,0.188941,2465.9,2465.8,9.38957303]
[1727803500227,0.188941,2465.9,2465.8,17.22970603]
[1727803501641,0.188941,2465.9,2465.8,17.37187053]
[1727803502143,1.5937,2467.9,2466.5,3.0]
[1727803502363,4.05146,2468.3,2467.5,4.05255]
[1727803502694,1.515,2468.4,2468.2,4.05153]
[1727803502894,1.5212,2468.9,2468.4,4.05119]
[1727803503179,1.5212,2468.9,2467.9,3.0]
[1727803503339,4.05057,2468.8,2468.2,4.05137]
[1727803503541,4.05057,2468.8,2468.0,4.05174]
[1727803503771,1.5212,2468.9,2468.0,4.05174]
[1727803503772,5.57159,2468.9,2468.2,8.10283]
[1727803503969,4.05039,2468.9,2468.2,8.79813]
[1727803504250,4.291,2469.9,2468.2,8.79813]
[1727803504251,1.5212,2470.6,2469.5,4.04939]
[1727803504557,1.5212,2470.6,2469.0,5.27695034]
[1727803504807,1.5212,2470.6,2469.8,4.04885]
[1727803505096,0.1093,2471.1,2469.9,4.12970244]
[1727803505097,4.04702,2471.0,2469.9,4.12970244]
[1727803505298,4.04702,2471.0,2469.9,4.04874]
[1727803505299,1.6473,2471.0,2469.9,4.04874]
[1727803505447,0.1093,2471.1,2471.0,4.04694]
[1727803505645,0.1093,2471.1,2470.8,4.04723]
[1727803505882,0.1093,2471.1,2470.4,4.04781]